[Event "Spring Chess Classic A 2024"]
[Site "Saint Louis"]
[Date "2024.04.14"]
[Round "3.1"]
[White "Hakobyan, Aram"]
[Black "Mendonca, Leon Luke"]
[Result "0-1"]
[ECO "D39"]
[WhiteElo "2619"]
[BlackElo "2626"]
[Annotator "ChessBase"]
[PlyCount "100"]
[EventDate "2024.04.11"]
[EventCountry "USA"]
[SourceTitle "playchess.com"]
[Source "ChessBase"]
[SourceQuality "1"]
[TimeControl "7200+30"]

1. d4 {[%emt 0:00:22]} Nf6 {[%emt 0:00:18]} 2. c4 {[%emt 0:00:11]} e6 {[%emt 0:00:09]} 3. Nf3 {[%emt 0:00:07]} d5 {[%emt 0:00:29]} 4. Nc3 {[%emt 0:00:22]} Bb4 {[%emt 0:00:55]} 5. Bg5 {[%emt 0:00:30]} dxc4 {[%emt 0:00:41]} 6. e4 {[%emt 0:00:29]} h6 {[%emt 0:00:38]} 7. Bxf6 {[%emt 0:00:27]} Qxf6 {[%emt 0:00:08]} 8. Bxc4 {[%emt 0:00:18]} c5 {[%emt 0:00:27]} 9. O-O {[%emt 0:00:37]} cxd4 {[%emt 0:00:55]} 10. e5 {[%emt 0:00:35]} Qd8 {[%emt 0:00:22]} 11. Ne4 {[%emt 0:00:14]} O-O {[%emt 0:00:22]} 12. Qe2 {[%emt 0:01:37]} Be7 {[%emt 0:00:42]} 13. Rfd1 {[%emt 0:01:01]} Qa5 {[%emt 0:01:10]} 14. Rac1 {[%emt 0:03:02]} Rd8 {[%emt 0:06:21]} 15. Ng3 {[%emt 0:26:52]} Bd7 {[%emt 0:22:10]} 16. Nh5 {[%emt 0:03:48]} g6 {[%emt 0:10:21]} 17. Nf4 {[%emt 0:04:22]} Nc6 {[%emt 0:07:30]} 18. Qe4 {[%emt 0:09:26]} Bf8 {[%emt 0:16:11]} 19. b4 {[%emt 0:39:14]} Qxb4 {[%emt 0:02:07]} 20. Nxg6 {[%emt 0:06:21]} fxg6 {[%emt 0:00:10]} 21. Qxg6+ {[%emt 0:00:06]} Bg7 {[%emt 0:00:04]} 22. Ng5 {[%emt 0:00:18]} Qe7 {[%emt 0:28:23]} 23. Nxe6 {[%emt 0:00:30]} Bxe6 {[%emt 0:01:44]} 24. Bxe6+ {[%emt 0:00:04]} Kh8 {[%emt 0:00:04]} 25. Bf5 {[%emt 0:00:23]} Bf8 {[%emt 0:00:14]} 26. f4 {[%emt 0:00:05]} Qg7 {[%emt 0:02:21]} 27. Qh5 {[%emt 0:00:50]} Nb4 {[%emt 0:01:00]} 28. Rb1 {[%emt 0:16:06]} Nd5 {[%emt 0:03:40]} 29. Qf3 {[%emt 0:00:01]} Rab8 {[%emt 0:02:12]} 30. Rd2 {[%emt 0:02:58]} b6 {[%emt 0:01:35]} 31. Kh1 {[%emt 0:01:44]} Bc5 {[%emt 0:01:31]} 32. g4 {[%emt 0:03:10]} Ne3 {[%emt 0:02:08]} 33. Bd3 {[%emt 0:00:07]} Rf8 {[%emt 0:02:30]} 34. Rf2 {[%emt 0:00:54]} Rbe8 {[%emt 0:03:09]} 35. g5 {[%emt 0:05:13]} Rxe5 {[%emt 0:01:57]} 36. gxh6 {[%emt 0:00:14]} Qg4 {[%emt 0:08:10]} 37. Rg1 {[%emt 0:00:10]} Qxf3+ {[%emt 0:00:02]} 38. Rxf3 {[%emt 0:00:04]} Rh5 {[%emt 0:02:09]} 39. h7 {[%emt 0:00:10]} Nd5 {[%emt 0:01:31]} 40. Rfg3 {[%emt 0:01:42]} Nf6 {[%emt 0:00:14]} 41. Rg7 {[%emt 0:00:44]} a5 {[%emt 0:01:56]} 42. R1g6 {[%emt 0:01:16]} Nxh7 {[%emt 0:00:50]} 43. Bc4 {[%emt 0:01:57]} Nf6 {[%emt 0:00:24]} 44. Rb7 {[%emt 0:00:10]} Rh7 {[%emt 0:01:57]} 45. Rxh7+ {[%emt 0:00:06]} Kxh7 {[%emt 0:00:01]} 46. f5 {[%emt 0:00:27]} Bd6 {[%emt 0:00:57]} 47. Kg2 {[%emt 0:00:22]} Be5 {[%emt 0:00:00]} 48. Kf3 {[%emt 0:00:19]} Rc8 {[%emt 0:00:07]} 49. Bd3 {[%emt 0:00:34]} Rc3 {[%emt 0:00:06]} 50. Ke2 {[%emt 0:00:02]} Ra3 {[%emt 0:00:04]} 0-1

[Event "Spring Chess Classic A 2024"]
[Site "Saint Louis"]
[Date "2024.04.14"]
[Round "3.2"]
[White "Bok, Benjamin"]
[Black "Mishra, Abhimanyu"]
[Result "1/2-1/2"]
[ECO "D13"]
[WhiteElo "2620"]
[BlackElo "2626"]
[Annotator "RC"]
[PlyCount "78"]
[EventDate "2024.04.11"]
[EventCountry "USA"]
[SourceTitle "playchess.com"]
[Source "ChessBase"]
[SourceQuality "1"]
[TimeControl "7200+30"]

1. d4 {[%emt 0:01:20]} d5 {[%emt 0:00:05]} 2. c4 {[%emt 0:00:05]} c6 {[%emt 0:00:19]} 3. cxd5 {[%emt 0:01:02]} cxd5 {[%emt 0:00:11]} 4. Bf4 {[%emt 0:00:15]} Nc6 {[%emt 0:00:20]} 5. e3 {[%emt 0:00:11]} a6 {[%emt 0:00:19]} 6. Nc3 {[%emt 0:00:40]} Nf6 {[%emt 0:00:22]} 7. Be2 {[%emt 0:00:28]} Bf5 {[%emt 0:00:16]} 8. Nf3 {[%emt 0:00:36]} e6 {[%emt 0:01:26]} 9. Qb3 {[%emt 0:00:41]} Nh5 {[%emt 0:01:05]} 10. Be5 {[%emt 0:00:16]} Na5 {[%emt 0:00:32]} 11. Qa4+ {[%emt 0:00:07]} Nc6 {[%emt 0:00:29]} 12. Qb3 {[%emt 0:00:19]} Na5 {[%emt 0:00:10]} 13. Qa4+ {[%emt 0:00:04]} Nc6 {[%emt 0:00:09]} 14. O-O {[%emt 0:04:10]} Be7 {[%emt 0:01:42]} 15. Rfc1 {[%emt 0:02:58]} O-O {[%emt 0:02:30]} 16. h3 {[%emt 0:00:04]} Nf6 {[%emt 0:01:07]} 17. Bg3 {[%emt 0:00:10]} Rc8 {[%emt 0:03:23]} 18. Qd1 {[%emt 0:08:28]} h6 {[%emt 0:00:58]} 19. Ne5 {[%emt 0:07:51]} Bd6 {[%emt 0:17:07]} 20. Na4 {[%emt 0:36:59]} Bxe5 {[%emt 0:06:48]} 21. Bxe5 {[%emt 0:01:31]} Nxe5 {[%emt 0:04:17]} 22. Rxc8 {[%emt 0:04:45]} Qxc8 {[%emt 0:01:58]} 23. dxe5 {[%emt 0:00:08]} Nd7 {[%emt 0:08:30]} 24. Rc1 {[%emt 0:00:34]} Qb8 {[%emt 0:01:19]} 25. f4 {[%emt 0:02:34]} Rc8 {[%emt 0:01:52]} 26. b4 {[%emt 0:17:57]} f6 {[%emt 0:20:32]} 27. exf6 {[%emt 0:05:51]} Nxf6 {[%emt 0:00:54]} 28. Bf3 {[%emt 0:05:19]} Be4 {[%emt 0:08:22]} 29. Bxe4 {[%emt 0:09:40]} Nxe4 {[%emt 0:01:23]} 30. Nc5 {[%emt 0:00:17]} Nxc5 {[%emt 0:08:20]} 31. Rxc5 {[%emt 0:00:17]} Rxc5 {[%emt 0:00:38]} 32. bxc5 {[%emt 0:00:02]} Qf8 {[%emt 0:03:15]} 33. Qd4 {[%emt 0:10:37]} Qf5 {[%emt 0:00:47]} 34. a4 {[%emt 0:00:13]} Kh7 {[%emt 0:08:35]} 35. Kf2 {[%emt 0:01:12]} Qc2+ {[%emt 0:00:48]} 36. Kf3 {[%emt 0:00:31]} Qc1 {[%emt 0:03:25]} 37. Kf2 {[%emt 0:01:37]} Qc2+ {[%emt 0:00:15]} 38. Kf3 {[%emt 0:00:03]} Qc1 {[%emt 0:00:06]} 39. Kf2 {[%emt 0:00:04]} Qc2+ {[%emt 0:00:07]} 1/2-1/2

[Event "Spring Chess Classic A 2024"]
[Site "Saint Louis"]
[Date "2024.04.14"]
[Round "3.3"]
[White "Ter-Sahakyan, Samvel"]
[Black "Aryan Chopra"]
[Result "1/2-1/2"]
[ECO "B12"]
[WhiteElo "2644"]
[BlackElo "2630"]
[Annotator "RC"]
[PlyCount "109"]
[EventDate "2024.04.11"]
[EventCountry "USA"]
[SourceTitle "playchess.com"]
[Source "ChessBase"]
[SourceQuality "1"]
[TimeControl "7200+30"]

1. e4 {[%emt 0:00:04]} c6 {[%emt 0:00:31]} 2. d4 {[%emt 0:00:32]} d5 {[%emt 0:00:09]} 3. e5 {[%emt 0:03:09]} Bf5 {[%emt 0:00:09]} 4. h4 {[%emt 0:09:35]} h5 {[%emt 0:00:12]} 5. Bd3 {[%emt 0:00:16]} Bxd3 {[%emt 0:00:23]} 6. Qxd3 {[%emt 0:00:06]} Qa5+ {[%emt 0:00:09]} 7. Nd2 {[%emt 0:00:59]} e6 {[%emt 0:00:10]} 8. Ngf3 {[%emt 0:00:10]} Nh6 {[%emt 0:00:25]} 9. O-O {[%emt 0:00:11]} Nf5 {[%emt 0:00:09]} 10. Nb3 {[%emt 0:00:09]} Qb5 {[%emt 0:01:35]} 11. Qd1 {[%emt 0:02:44]} c5 {[%emt 0:00:13]} 12. a4 {[%emt 0:04:35]} Qb6 {[%emt 0:03:55]} 13. dxc5 {[%emt 0:20:00]} Bxc5 {[%emt 0:00:10]} 14. Nxc5 {[%emt 0:04:35]} Qxc5 {[%emt 0:00:07]} 15. Bg5 {[%emt 0:00:16]} Nc6 {[%emt 0:03:09]} 16. c3 {[%emt 0:00:35]} Rc8 {[%emt 0:09:58]} 17. Re1 {[%emt 0:02:32]} Qb6 {[%emt 0:02:34]} 18. Rb1 {[%emt 0:10:16]} Na5 {[%emt 0:17:46]} 19. b4 {[%emt 0:04:22]} Nc4 {[%emt 0:02:29]} 20. Nd4 {[%emt 0:00:06]} Nxd4 {[%emt 0:01:45]} 21. cxd4 {[%emt 0:00:10]} Rc7 {[%emt 0:10:46]} 22. a5 {[%emt 0:07:37]} Qb5 {[%emt 0:01:27]} 23. Qf3 {[%emt 0:00:25]} Rc8 {[%emt 0:10:14]} 24. Rb3 {[%emt 0:09:23]} Qa4 {[%emt 0:02:23]} 25. Reb1 {[%emt 0:01:51]} Qa2 {[%emt 0:05:11]} 26. Qd1 {[%emt 0:03:38]} Qa4 {[%emt 0:00:13]} 27. Ra1 {[%emt 0:00:30]} Qb5 {[%emt 0:00:26]} 28. Qf3 {[%emt 0:00:18]} Rc7 {[%emt 0:00:53]} 29. Rc1 {[%emt 0:05:16]} Rc8 {[%emt 0:01:35]} 30. Rcc3 {[%emt 0:00:55]} Rc7 {[%emt 0:04:32]} 31. Kh2 {[%emt 0:00:44]} Rc8 {[%emt 0:08:10]} 32. Qf4 {[%emt 0:06:08]} Rc7 {[%emt 0:02:40]} 33. Rf3 {[%emt 0:00:46]} Qa4 {[%emt 0:07:21]} 34. Qc1 {[%emt 0:01:03]} Qa2 {[%emt 0:08:32]} 35. Qd1 {[%emt 0:02:17]} Rf8 {[%emt 0:06:54]} 36. Qd3 {[%emt 0:16:48]} Rh8 {[%emt 0:03:12]} 37. Qd1 {[%emt 0:04:29]} Qa4 {[%emt 0:05:39]} 38. Qb1 {[%emt 0:00:32]} Rc8 {[%emt 0:01:26]} 39. Rbc3 {[%emt 0:01:16]} Rc7 {[%emt 0:00:33]} 40. Rb3 {[%emt 0:02:32]} Qb5 {[%emt 0:01:05]} 41. Qa2 {[%emt 0:00:56]} Rf8 {[%emt 0:01:59]} 42. Rf4 {[%emt 0:01:22]} Rh8 {[%emt 0:00:12]} 43. Kg1 {[%emt 0:01:40]} Rd7 {[%emt 0:00:44]} 44. Rff3 {[%emt 0:00:56]} Rc7 {[%emt 0:00:22]} 45. Qa1 {[%emt 0:00:15]} Rf8 {[%emt 0:00:46]} 46. Qd1 {[%emt 0:00:56]} Qa4 {[%emt 0:02:33]} 47. Kh2 {[%emt 0:00:50]} Rh8 {[%emt 0:01:01]} 48. Qe2 {[%emt 0:00:59]} Qb5 {[%emt 0:00:31]} 49. Qd3 {[%emt 0:01:03]} Qa4 {[%emt 0:00:24]} 50. Qb1 {[%emt 0:00:29]} Qb5 {[%emt 0:00:26]} 51. Qc1 {[%emt 0:00:39]} Rf8 {[%emt 0:00:59]} 52. Qb1 {[%emt 0:01:36]} Rh8 {[%emt 0:00:07]} 53. Qc1 {[%emt 0:00:04]} Rf8 {[%emt 0:00:04]} 54. Qb1 {[%emt 0:00:07]} Rh8 {[%emt 0:00:15]} 55. Qc1 {[%emt 0:00:03]} 1/2-1/2

[Event "Spring Chess Classic A 2024"]
[Site "Saint Louis"]
[Date "2024.04.13"]
[Round "3.4"]
[White "Yoo, Christopher Woojin"]
[Black "Swiercz, Dariusz"]
[Result "1/2-1/2"]
[ECO "C89"]
[WhiteElo "2583"]
[BlackElo "2612"]
[Annotator "RC"]
[PlyCount "130"]
[EventDate "2024.04.11"]
[EventCountry "USA"]
[SourceTitle "playchess.com"]
[Source "ChessBase"]
[SourceQuality "1"]
[TimeControl "7200+30"]

1. e4 {[%emt 0:00:02]} e5 {[%emt 0:01:45]} 2. Nf3 {[%emt 0:00:07]} Nc6 {[%emt 0:00:04]} 3. Bb5 {[%emt 0:00:03]} a6 {[%emt 0:02:03]} 4. Ba4 {[%emt 0:00:04]} Nf6 {[%emt 0:00:07]} 5. O-O {[%emt 0:00:05]} Be7 {[%emt 0:00:39]} 6. Re1 {[%emt 0:00:25]} b5 {[%emt 0:00:28]} 7. Bb3 {[%emt 0:00:07]} O-O {[%emt 0:00:32]} 8. c3 {[%emt 0:00:25]} d5 {[%emt 0:04:54]} 9. exd5 {[%emt 0:00:10]} Nxd5 {[%emt 0:00:02]} 10. Nxe5 {[%emt 0:00:10]} Nxe5 {[%emt 0:00:02]} 11. Rxe5 {[%emt 0:00:09]} c6 {[%emt 0:00:02]} 12. d3 {[%emt 0:00:26]} Bd6 {[%emt 0:00:07]} 13. Re1 {[%emt 0:00:05]} Bf5 {[%emt 0:07:16]} 14. Nd2 {[%emt 0:09:33]} Nf4 {[%emt 0:01:44]} 15. Ne4 {[%emt 0:02:32]} Nxd3 {[%emt 0:03:05]} 16. Bg5 {[%emt 0:02:08]} Qd7 {[%emt 0:03:55]} 17. Nxd6 {[%emt 0:17:17]} Qxd6 {[%emt 0:11:30]} 18. Bc2 {[%emt 0:06:02]} Qg6 {[%emt 0:05:16]} 19. Bxd3 {[%emt 0:00:54]} Bxd3 {[%emt 0:00:05]} 20. Re3 {[%emt 0:06:29]} Qxg5 {[%emt 0:05:30]} 21. Rxd3 {[%emt 0:01:31]} Rad8 {[%emt 0:00:23]} 22. g3 {[%emt 0:04:29]} g6 {[%emt 0:07:53]} 23. a4 {[%emt 0:01:01]} Rxd3 {[%emt 0:01:29]} 24. Qxd3 {[%emt 0:00:07]} Rd8 {[%emt 0:00:03]} 25. Qf3 {[%emt 0:01:31]} Qd5 {[%emt 0:00:11]} 26. Qxd5 {[%emt 0:07:30]} Rxd5 {[%emt 0:00:05]} 27. axb5 {[%emt 0:02:30]} axb5 {[%emt 0:00:05]} 28. Ra6 {[%emt 0:00:54]} Rd2 {[%emt 0:06:33]} 29. Rxc6 {[%emt 0:04:05]} Rxb2 {[%emt 0:00:07]} 30. c4 {[%emt 0:01:53]} bxc4 {[%emt 0:00:06]} 31. Rxc4 {[%emt 0:00:04]} h5 {[%emt 0:00:07]} 32. h4 {[%emt 0:00:06]} Kg7 {[%emt 0:00:04]} 33. Kg2 {[%emt 0:00:07]} Ra2 {[%emt 0:00:03]} 34. Rc5 {[%emt 0:00:22]} Rb2 {[%emt 0:00:03]} 35. Rc3 {[%emt 0:00:23]} Ra2 {[%emt 0:00:05]} 36. Re3 {[%emt 0:00:09]} Rb2 {[%emt 0:00:03]} 37. Kf3 {[%emt 0:00:09]} Ra2 {[%emt 0:00:04]} 38. Rc3 {[%emt 0:00:10]} Rb2 {[%emt 0:00:05]} 39. Ke3 {[%emt 0:00:12]} Ra2 {[%emt 0:00:04]} 40. Rd3 {[%emt 0:00:19]} Rb2 {[%emt 0:00:05]} 41. Kf3 {[%emt 0:00:13]} Ra2 {[%emt 0:00:03]} 42. Rd1 {[%emt 0:01:11]} Rb2 {[%emt 0:00:05]} 43. Rh1 {[%emt 0:00:12]} Ra2 {[%emt 0:00:03]} 44. Rg1 {[%emt 0:00:11]} Rb2 {[%emt 0:00:03]} 45. Rf1 {[%emt 0:00:07]} Ra2 {[%emt 0:00:03]} 46. Re1 {[%emt 0:00:08]} Rb2 {[%emt 0:00:03]} 47. Rd1 {[%emt 0:00:09]} Ra2 {[%emt 0:00:03]} 48. Ke3 {[%emt 0:00:51]} Rb2 {[%emt 0:00:04]} 49. f3 {[%emt 0:00:08]} Ra2 {[%emt 0:00:17]} 50. Rd4 {[%emt 0:00:35]} Ra3+ {[%emt 0:00:20]} 51. Kf4 {[%emt 0:00:10]} Ra1 {[%emt 0:00:06]} 52. g4 {[%emt 0:00:16]} hxg4 {[%emt 0:00:05]} 53. fxg4 {[%emt 0:00:07]} Rf1+ {[%emt 0:00:04]} 54. Kg3 {[%emt 0:00:11]} Rg1+ {[%emt 0:00:05]} 55. Kh2 {[%emt 0:00:16]} Ra1 {[%emt 0:00:03]} 56. g5 {[%emt 0:00:13]} Ra3 {[%emt 0:00:05]} 57. Kg2 {[%emt 0:00:25]} Rb3 {[%emt 0:00:03]} 58. Rf4 {[%emt 0:00:27]} Ra3 {[%emt 0:00:03]} 59. Rf3 {[%emt 0:00:10]} Ra4 {[%emt 0:00:17]} 60. Kg3 {[%emt 0:00:08]} Rb4 {[%emt 0:00:09]} 61. Rf4 {[%emt 0:00:13]} Rb3+ {[%emt 0:00:36]} 62. Kg4 {[%emt 0:00:31]} Rb1 {[%emt 0:00:06]} 63. Kg3 {[%emt 0:00:20]} Rb3+ {[%emt 0:00:05]} 64. Kg4 {[%emt 0:00:05]} Rb1 {[%emt 0:00:02]} 65. Kg3 {[%emt 0:00:26]} Rb3+ {[%emt 0:00:03]} 1/2-1/2

[Event "Spring Chess Classic A 2024"]
[Site "Saint Louis"]
[Date "2024.04.14"]
[Round "3.5"]
[White "Theodorou, Nikolas"]
[Black "Antipov, Mikhail Al."]
[Result "1-0"]
[ECO "E08"]
[WhiteElo "2622"]
[BlackElo "2574"]
[Annotator "RC"]
[PlyCount "123"]
[EventDate "2024.04.11"]
[EventCountry "USA"]
[SourceTitle "playchess.com"]
[Source "ChessBase"]
[SourceQuality "1"]
[TimeControl "7200+30"]

1. Nf3 {[%emt 0:00:04]} d5 {[%emt 0:00:09]} 2. d4 {[%emt 0:00:06]} Nf6 {[%emt 0:00:05]} 3. c4 {[%emt 0:00:06]} e6 {[%emt 0:00:07]} 4. g3 {[%emt 0:00:08]} Bb4+ {[%emt 0:00:05]} 5. Bd2 {[%emt 0:00:06]} Be7 {[%emt 0:00:05]} 6. Bg2 {[%emt 0:00:06]} O-O {[%emt 0:00:08]} 7. O-O {[%emt 0:00:06]} Nbd7 {[%emt 0:00:06]} 8. Qc2 {[%emt 0:00:26]} c6 {[%emt 0:00:05]} 9. Bf4 {[%emt 0:00:15]} b6 {[%emt 0:00:30]} 10. cxd5 {[%emt 0:00:27]} cxd5 {[%emt 0:00:07]} 11. Rc1 {[%emt 0:00:06]} Bb7 {[%emt 0:14:20]} 12. Nc3 {[%emt 0:00:09]} Nh5 {[%emt 0:14:10]} 13. Be5 {[%emt 0:14:41]} Rc8 {[%emt 0:01:30]} 14. Qd1 {[%emt 0:02:13]} a6 {[%emt 0:07:03]} 15. Rc2 {[%emt 0:14:29]} Nhf6 {[%emt 0:11:57]} 16. Bf4 {[%emt 0:03:04]} Nh5 {[%emt 0:02:23]} 17. Bd2 {[%emt 0:00:02]} h6 {[%emt 0:18:40]} 18. Rac1 {[%emt 0:01:54]} Bd6 {[%emt 0:03:35]} 19. Ne1 {[%emt 0:04:30]} Nhf6 {[%emt 0:00:31]} 20. Nd3 {[%emt 0:00:54]} Qe7 {[%emt 0:09:16]} 21. Bf4 {[%emt 0:02:16]} Rfd8 {[%emt 0:03:35]} 22. e3 {[%emt 0:11:20]} Ne8 {[%emt 0:05:58]} 23. Bf1 {[%emt 0:04:41]} Bxf4 {[%emt 0:03:03]} 24. exf4 {[%emt 0:03:23]} Rc7 {[%emt 0:05:34]} 25. Qe1 {[%emt 0:04:42]} Qd6 {[%emt 0:01:05]} 26. a3 {[%emt 0:06:48]} Rdc8 {[%emt 0:00:40]} 27. Ne5 {[%emt 0:02:14]} Nb8 {[%emt 0:04:36]} 28. Qd1 {[%emt 0:08:55]} Qd8 {[%emt 0:02:28]} 29. Na4 {[%emt 0:04:02]} Nd6 {[%emt 0:02:04]} 30. Bd3 {[%emt 0:06:08]} Rxc2 {[%emt 0:01:54]} 31. Rxc2 {[%emt 0:02:04]} Nc6 {[%emt 0:01:44]} 32. Bf1 {[%emt 0:11:51]} Nf5 {[%emt 0:02:33]} 33. Nf3 {[%emt 0:02:29]} Nd6 {[%emt 0:00:34]} 34. h4 {[%emt 0:00:36]} a5 {[%emt 0:04:45]} 35. h5 {[%emt 0:02:53]} Ne7 {[%emt 0:00:42]} 36. Rxc8 {[%emt 0:00:51]} Ndxc8 {[%emt 0:00:26]} 37. Ne5 {[%emt 0:01:02]} Bc6 {[%emt 0:00:27]} 38. Nc3 {[%emt 0:01:19]} Nd6 {[%emt 0:00:11]} 39. Bd3 {[%emt 0:00:08]} Be8 {[%emt 0:00:22]} 40. g4 {[%emt 0:03:00]} f6 {[%emt 0:02:29]} 41. Nf3 {[%emt 0:02:28]} f5 {[%emt 0:00:15]} 42. Ne5 {[%emt 0:00:08]} fxg4 {[%emt 0:00:26]} 43. Qxg4 {[%emt 0:00:03]} Ndf5 {[%emt 0:01:36]} 44. Ne2 {[%emt 0:00:16]} Qc8 {[%emt 0:01:42]} 45. Nf3 {[%emt 0:02:27]} Ba4 {[%emt 0:00:54]} 46. Nc3 {[%emt 0:00:32]} Be8 {[%emt 0:00:05]} 47. Ne2 {[%emt 0:00:52]} Bf7 {[%emt 0:02:42]} 48. Kh2 {[%emt 0:01:09]} Kf8 {[%emt 0:02:46]} 49. Qh3 {[%emt 0:02:52]} Qe8 {[%emt 0:00:49]} 50. Ng3 {[%emt 0:01:00]} Nxg3 {[%emt 0:00:15]} 51. fxg3 {[%emt 0:02:13]} Bxh5 {[%emt 0:01:06]} 52. g4 {[%emt 0:01:16]} Bg6 {[%emt 0:00:44]} 53. f5 {[%emt 0:00:14]} exf5 {[%emt 0:00:38]} 54. gxf5 {[%emt 0:00:02]} Bh7 {[%emt 0:00:11]} 55. Ne5 {[%emt 0:03:28]} Ng8 {[%emt 0:00:10]} 56. Qh4 {[%emt 0:01:45]} Nf6 {[%emt 0:00:10]} 57. Kg2 {[%emt 0:00:02]} Qc8 {[%emt 0:02:17]} 58. Qf4 {[%emt 0:00:21]} Qe8 {[%emt 0:00:15]} 59. Qc1 {[%emt 0:01:42]} Ne4 {[%emt 0:01:31]} 60. Qc7 {[%emt 0:00:01]} Bxf5 {[%emt 0:00:27]} 61. Bb5 {[%emt 0:00:42]} Bh3+ {[%emt 0:01:23]} 62. Kh2 {[%emt 0:00:38]} 1-0

[Event "Spring Chess Classic A 2024"]
[Site "Saint Louis"]
[Date "2024.04.15"]
[Round "4.1"]
[White "Mendonca, Leon Luke"]
[Black "Antipov, Mikhail Al."]
[Result "0-1"]
[ECO "C54"]
[WhiteElo "2626"]
[BlackElo "2574"]
[Annotator "TA"]
[PlyCount "106"]
[EventDate "2024.04.11"]
[EventCountry "USA"]
[SourceTitle "playchess.com"]
[Source "ChessBase"]
[SourceQuality "1"]
[TimeControl "7200+30"]

{[%evp 35,106,0,0,0,12,0,5,-2,19,0,14,2,18,0,0,0,0,0,0,-35,-29,-87,-31,-47,-55,-54,-58,-122,-56,-174,-130,-180,-169,-157,-121,-214,-219,-218,-228,-231,-228,-226,-209,-246,-260,-249,-273,-350,-335,-348,-339,-352,-304,-336,-345,-332,-325,-292,-264,-387,-398,-408,-396,-395,-388,-1020,-383,-7637,-6814,-11809,-11728,-5081,-2712]} 1. e4 {[%emt 0:00:57]} e5 {[%emt 0:00:04]} 2. Nf3 {[%emt 0:00:21]} Nc6 {[%emt 0:00:21]} 3. Bc4 {[%emt 0:00:16]} Bc5 {[%emt 0:00:06]} 4. d3 {[%emt 0:00:21]} Nf6 {[%emt 0:00:18]} 5. c3 {[%emt 0:00:49]} d6 {[%emt 0:00:14]} 6. O-O {[%emt 0:01:00]} a6 {[%emt 0:01:05]} 7. a4 {[%emt 0:01:53] C54: Giuoco Piano: 4 c3 Nf6, main lines with 5 d4 and 5 d3.} Ba7 {[%emt 0:02:22]} 8. Be3 {[%emt 0:05:20]} Bxe3 {[%emt 0:09:28]} 9. fxe3 {[%emt 0:01:29]} O-O {[%emt 0:00:05]} 10. Nbd2 {[%emt 0:01:12]} Qe7 $1 $146 {[%emt 0:02:47][%mdl 8] A relevant novelty.} ({Predecessor:} 10... Ne7 11. a5 Ng6 12. Bb3 h6 13. Re1 Re8 14. Qc2 c6 15. Nc4 Be6 16. Nb6 Rb8 17. Bxe6 Rxe6 {½-½ Kravtsiv,M (2677)-Sokolov,I (2603) EU-chT (Men) 21st 2017 (2.4)}) 11. d4 {[%emt 0:08:28]} a5 {[%emt 0:12:06]} 12. Qe1 {[%emt 0:13:09]} Bd7 {[%emt 0:05:20]} 13. Qg3 {[%emt 0:15:34]} Rae8 {[%emt 0:03:38]} 14. Bd3 {[%emt 0:02:18]} g6 {[%emt 0:05:11]} 15. Rae1 {[%emt 0:04:20]} b6 {[%emt 0:02:35]} 16. Nc4 {[%emt 0:04:04]} Bc8 {[%emt 0:17:51]} 17. Nfd2 {[%emt 0:05:11]} Kg7 {[%emt 0:01:45]} 18. Qf3 {[%emt 0:04:47]} Bg4 {[%emt 0:01:13]} 19. Qg3 {[%emt 0:00:56]} Bc8 {[%emt 0:00:05]} 20. Qf3 {[%emt 0:03:40]} Bg4 {[%emt 0:00:13]} 21. Qf2 {[%emt 0:00:05]} h6 {[%emt 0:00:47]} 22. Rb1 {[%emt 0:08:04]} Bd7 {[%emt 0:03:18]} 23. Ra1 {[%emt 0:07:32]} Ra8 {[%emt 0:01:53]} 24. Na3 {[%emt 0:03:25]} Nd8 {[%emt 0:02:40]} 25. Nb5 {[%emt 0:01:49]} Ne6 {[%emt 0:02:45]} 26. Rae1 {[%emt 0:08:13]} Rac8 {[%emt 0:03:38]} 27. b4 {[%emt 0:05:27]} Ra8 {[%emt 0:01:55]} 28. Ra1 {[%emt 0:03:14]} (28. Rc1 $11 {keeps the balance.}) 28... Rfc8 {[%emt 0:03:50]} (28... axb4 $17 29. cxb4 exd4 30. exd4 d5) 29. Nf3 {[%emt 0:12:51]} Ng5 {[%emt 0:05:53]} 30. Nxg5 {[%emt 0:02:39]} hxg5 {[%emt 0:00:11]} 31. Qg3 {[%emt 0:02:22]} ({Better is} 31. bxa5 $15 Rxa5 32. c4) 31... g4 {[%emt 0:05:08]} (31... Bxb5 $17 32. Bxb5 Nxe4) 32. Qh4 {[%emt 0:01:07]} (32. bxa5 $15 Nh5 (32... Rxa5 33. c4 $17) 33. Qe1) 32... Bxb5 $19 {[%emt 0:05:51]} 33. axb5 {[%emt 0:01:31]} axb4 {[%emt 0:08:57]} 34. cxb4 {[%emt 0:00:02]} Rh8 {[%emt 0:00:26]} 35. Qg3 {[%emt 0:00:24]} (35. Qe1 $17) 35... exd4 $19 {[%emt 0:04:35]} 36. exd4 {[%emt 0:00:48]} Nxe4 {[%emt 0:00:14]} 37. Qxg4 {[%emt 0:00:46]} Rxa1 {[%emt 0:00:20]} 38. Rxa1 {[%emt 0:00:01]} Rh4 {[%emt 0:00:48]} 39. Qe2 {[%emt 0:01:04] [#]} Qf6 $1 {[%emt 0:00:37]} 40. Qe3 {[%emt 0:00:38]} Nc3 {[%emt 0:00:28]} 41. g3 {[%emt 0:02:20]} Qxd4 {[%emt 0:07:20]} 42. Qxd4+ {[%emt 0:00:09]} Rxd4 {[%emt 0:00:03]} 43. Bf1 {[%emt 0:00:08]} Rxb4 {[%emt 0:00:09]} 44. Ra7 {[%emt 0:00:25]} Nxb5 {[%emt 0:01:17]} ({Don't play} 44... Rb1 45. Kg2 $19) 45. Bxb5 {[%emt 0:00:01]} Rxb5 {[%emt 0:00:05]} 46. Rxc7 {[%emt 0:00:06]} Kf6 {[%emt 0:02:59]} 47. Kg2 {[%emt 0:00:14]} (47. Rc2 {is a better defense.}) 47... Rb2+ $19 {[%emt 0:03:40]} 48. Kf3 {[%emt 0:00:13]} b5 {[%emt 0:00:03]} 49. h4 {[%emt 0:00:26]} b4 {[%emt 0:00:12]} 50. g4 $2 {[%emt 0:00:27]} (50. Rb7) 50... b3 $2 {[%emt 0:00:02]} (50... Rb1 {Strongly threatening ...b3.} 51. Rc6 Ke5) 51. Rb7 $2 {[%emt 0:00:19]} (51. Rc1) 51... Rb1 $19 {[%emt 0:00:08]} 52. Kg2 {[%emt 0:00:06]} b2 {[%emt 0:01:23]} 53. Rb6 {[%emt 0:00:01]} Ke5 {[%emt 0:00:14]} 0-1

[Event "Spring Chess Classic A 2024"]
[Site "Saint Louis"]
[Date "2024.04.15"]
[Round "4.2"]
[White "Swiercz, Dariusz"]
[Black "Theodorou, Nikolas"]
[Result "1/2-1/2"]
[ECO "A20"]
[WhiteElo "2612"]
[BlackElo "2622"]
[Annotator "RC"]
[PlyCount "51"]
[EventDate "2024.04.11"]
[EventCountry "USA"]
[SourceTitle "playchess.com"]
[Source "ChessBase"]
[SourceQuality "1"]
[TimeControl "7200+30"]

1. c4 {[%emt 0:01:15]} e5 {[%emt 0:00:19]} 2. g3 {[%emt 0:00:06]} c6 {[%emt 0:00:05]} 3. Nf3 {[%emt 0:00:11]} e4 {[%emt 0:00:25]} 4. Nd4 {[%emt 0:00:04]} d5 {[%emt 0:00:37]} 5. cxd5 {[%emt 0:00:09]} Qb6 {[%emt 0:00:19]} 6. Nb3 {[%emt 0:02:52]} a5 {[%emt 0:00:07]} 7. d3 {[%emt 0:00:39]} a4 {[%emt 0:00:17]} 8. N3d2 {[%emt 0:00:12]} exd3 {[%emt 0:00:07]} 9. Bg2 {[%emt 0:05:56]} Nf6 {[%emt 0:09:38]} 10. O-O {[%emt 0:07:40]} cxd5 {[%emt 0:06:13]} 11. exd3 {[%emt 0:03:34]} Nc6 {[%emt 0:01:44]} 12. Nc3 {[%emt 0:02:52]} Qa5 {[%emt 0:01:20]} 13. Re1+ {[%emt 0:00:31]} Be6 {[%emt 0:00:15]} 14. Bh3 {[%emt 0:24:44]} Be7 {[%emt 0:00:04]} 15. Bxe6 {[%emt 0:01:46]} fxe6 {[%emt 0:00:03]} 16. Nf3 {[%emt 0:12:51]} O-O {[%emt 0:03:31]} 17. d4 {[%emt 0:17:48]} Bb4 {[%emt 0:07:10]} 18. Rxe6 {[%emt 0:19:11]} Bxc3 {[%emt 0:19:05]} 19. bxc3 {[%emt 0:00:01]} Ne4 {[%emt 0:04:04]} 20. Bf4 {[%emt 0:01:48]} Qxc3 {[%emt 0:05:23]} 21. Rb1 {[%emt 0:01:20]} Qa3 {[%emt 0:02:41]} 22. Qe2 {[%emt 0:09:53]} Nc3 {[%emt 0:33:43]} 23. Qc2 {[%emt 0:00:05]} Ne4 {[%emt 0:00:03]} 24. Qe2 {[%emt 0:00:21]} Nc3 {[%emt 0:00:11]} 25. Qc2 {[%emt 0:00:04]} Ne4 {[%emt 0:00:57]} 26. Qe2 {[%emt 0:00:02]} 1/2-1/2